[Event "*** Titled Tuesday Blitz"]
[Site "Chess.com"]
[Date "2020.12.01"]
[Round "3"]
[White "GoltsevDmitry2000"]
[Black "anon481216"]
[Result "1-0"]
[WhiteElo "2638"]
[BlackElo "2399"]
[TimeControl "180+1"]
[EndTime "10:30:03 PST"]
[Termination "GoltsevDmitry2000 won by resignation"]

1. e4 {[%clk 0:02:39.5]} 1... c5 {[%clk 0:02:59.4]} 2. Nf3 {[%clk 0:02:36.5]}
2... Nf6 {[%clk 0:02:59.2]} 3. e5 {[%clk 0:02:33.9]} 3... Nd5 {[%clk 0:02:57]}
4. b3 {[%clk 0:02:34.1]} 4... Nc6 {[%clk 0:02:56.1]} 5. Bb2 {[%clk 0:02:28.6]}
5... g6 {[%clk 0:02:50.2]} 6. e6 {[%clk 0:02:17.2]} 6... f6 {[%clk 0:02:50.3]}
7. exd7+ {[%clk 0:02:01.6]} 7... Qxd7 {[%clk 0:02:47.2]} 8. d4 {[%clk
0:02:00.3]} 8... cxd4 {[%clk 0:02:46.5]} 9. Nxd4 {[%clk 0:01:57.3]} 9... Nxd4
{[%clk 0:02:46.4]} 10. Qxd4 {[%clk 0:01:51.4]} 10... e5 {[%clk 0:02:44.9]} 11.
Qe4 {[%clk 0:01:46.8]} 11... Bg7 {[%clk 0:02:23.4]} 12. Nc3 {[%clk 0:01:40.3]}
12... Nxc3 {[%clk 0:02:20.9]} 13. Bxc3 {[%clk 0:01:41.2]} 13... O-O {[%clk
0:02:20.7]} 14. Bc4+ {[%clk 0:01:40.5]} 14... Kh8 {[%clk 0:02:20.3]} 15. Rd1
{[%clk 0:01:39.8]} 15... Qc7 {[%clk 0:02:16.1]} 16. Bb4 {[%clk 0:01:35.7]} 16...
Bf5 {[%clk 0:02:13.1]} 17. Qe2 {[%clk 0:01:32.9]} 17... Rfd8 {[%clk 0:02:12.5]}
18. O-O {[%clk 0:01:31.2]} 18... Rxd1 {[%clk 0:02:06.1]} 19. Rxd1 {[%clk
0:01:32.1]} 19... Rd8 {[%clk 0:02:05.8]} 20. g4 {[%clk 0:01:07.1]} 20... Bc8
{[%clk 0:02:03.5]} 21. h3 {[%clk 0:00:55.9]} 21... Rxd1+ {[%clk 0:01:26]} 22.
Qxd1 {[%clk 0:00:55.5]} 22... Bd7 {[%clk 0:01:26.6]} 23. Qd5 {[%clk 0:00:52.9]}
23... Qc8 {[%clk 0:01:21.8]} 24. Be7 {[%clk 0:00:49.5]} 24... f5 {[%clk
0:01:09.7]} 25. g5 {[%clk 0:00:40.6]} 25... Bc6 {[%clk 0:01:01.9]} 26. Qf7
{[%clk 0:00:28.9]} 26... Qe8 {[%clk 0:00:58.5]} 27. Qxe8+ {[%clk 0:00:22.2]}
27... Bxe8 {[%clk 0:00:58]} 28. Bd5 {[%clk 0:00:22.6]} 28... b6 {[%clk
0:00:54.1]} 29. f3 {[%clk 0:00:20.1]} 29... h6 {[%clk 0:00:50.9]} 30. h4 {[%clk
0:00:18.4]} 30... hxg5 {[%clk 0:00:50.7]} 31. hxg5 {[%clk 0:00:19.3]} 31... Bd7
{[%clk 0:00:21.5]} 32. c4 {[%clk 0:00:17.7]} 32... e4 {[%clk 0:00:16.4]} 33.
fxe4 {[%clk 0:00:17.9]} 33... Bd4+ {[%clk 0:00:16.5]} 34. Kg2 {[%clk 0:00:17.7]}
34... fxe4 {[%clk 0:00:14.2]} 35. Bxe4 {[%clk 0:00:18.6]} 35... Kg7 {[%clk
0:00:14.1]} 36. Kf3 {[%clk 0:00:19.1]} 36... Kf7 {[%clk 0:00:14]} 37. Bd6 {[%clk
0:00:18.1]} 37... Be6 {[%clk 0:00:13.1]} 38. Kf4 {[%clk 0:00:14.6]} 38... Bd7
{[%clk 0:00:12]} 39. Be5 {[%clk 0:00:12.1]} 39... Bc5 {[%clk 0:00:11.9]} 40.
Bd5+ {[%clk 0:00:12.1]} 40... Kf8 {[%clk 0:00:12]} 41. Bf6 {[%clk 0:00:12]}
41... a5 {[%clk 0:00:11.1]} 42. Ke5 {[%clk 0:00:10.8]} 42... a4 {[%clk
0:00:10.8]} 43. Be4 {[%clk 0:00:10.3]} 43... axb3 {[%clk 0:00:10.2]} 44. axb3
{[%clk 0:00:11.2]} 44... Kf7 {[%clk 0:00:10.3]} 45. Bd5+ {[%clk 0:00:09.3]}
45... Kf8 {[%clk 0:00:10.2]} 46. Ke4 {[%clk 0:00:10.2]} 46... Be8 {[%clk
0:00:07.9]} 47. Kf3 {[%clk 0:00:11]} 47... Bd7 {[%clk 0:00:07.8]} 48. Ke2 {[%clk
0:00:11.5]} 48... Bf5 {[%clk 0:00:07.1]} 49. Kd2 {[%clk 0:00:12]} 49... Bb4+
{[%clk 0:00:06.2]} 50. Bc3 {[%clk 0:00:09.3]} 50... Be7 {[%clk 0:00:06.2]} 51.
b4 {[%clk 0:00:09.1]} 51... Bxg5+ {[%clk 0:00:06.2]} 52. Ke2 {[%clk 0:00:09.7]}
52... Be7 {[%clk 0:00:06]} 53. b5 {[%clk 0:00:08.7]} 53... Bc5 {[%clk
0:00:05.9]} 54. Kf3 {[%clk 0:00:09]} 54... Ke7 {[%clk 0:00:06.4]} 55. Be5 {[%clk
0:00:09]} 55... Bd3 {[%clk 0:00:05.8]} 56. Kg4 {[%clk 0:00:08.5]} 56... Kf8
{[%clk 0:00:05.2]} 57. Kg5 {[%clk 0:00:06.8]} 57... Be3+ {[%clk 0:00:04.8]} 58.
Bf4 {[%clk 0:00:05.5]} 58... Bc5 {[%clk 0:00:03.8]} 59. Kf6 {[%clk 0:00:03.9]}
59... Bd4+ {[%clk 0:00:03.2]} 60. Ke6 {[%clk 0:00:04]} 60... Bf5+ {[%clk
0:00:03.4]} 61. Kd6 {[%clk 0:00:04.3]} 61... Bc5+ {[%clk 0:00:03]} 62. Kc6
{[%clk 0:00:04.6]} 62... Bd4 {[%clk 0:00:01.9]} 63. Bc7 {[%clk 0:00:05]} 63...
g5 {[%clk 0:00:02.3]} 64. Bxb6 {[%clk 0:00:05.6]} 64... Be5 {[%clk 0:00:02.1]}
65. Bc5+ {[%clk 0:00:05.5]} 65... Ke8 {[%clk 0:00:01.8]} 66. b6 {[%clk
0:00:06.4]} 66... Kd8 {[%clk 0:00:02.4]} 67. b7 {[%clk 0:00:06.3]} 67... Bd7+
{[%clk 0:00:02.5]} 68. Kb6 {[%clk 0:00:06.8]} 68... Bc7+ {[%clk 0:00:03]} 69.
Ka7 {[%clk 0:00:07.3]} 69... g4 {[%clk 0:00:03.4]} 70. Bb6 {[%clk 0:00:07.5]}
70... Bxb6+ {[%clk 0:00:02.6]} 71. Kxb6 {[%clk 0:00:08.4]} 71... Ke7 {[%clk
0:00:02.8]} 72. b8=Q {[%clk 0:00:08.9]} 72... g3 {[%clk 0:00:03.1]} 73. Qxg3
{[%clk 0:00:09.2]} 1-0

[Event "*** Titled Tuesday Blitz"]
[Site "Chess.com"]
[Date "2020.12.01"]
[Round "3"]
[White "glebus008"]
[Black "Gerasimenyuk_Miha"]
[Result "0-1"]
[WhiteElo "2228"]
[BlackElo "2411"]
[TimeControl "180+1"]
[EndTime "10:30:06 PST"]
[Termination "Gerasimenyuk_Miha won by checkmate"]

1. e4 {[%clk 0:02:54.1]} 1... d5 {[%clk 0:02:58.7]} 2. exd5 {[%clk 0:02:53.2]}
2... Qxd5 {[%clk 0:02:59.6]} 3. Nc3 {[%clk 0:02:52.7]} 3... Qa5 {[%clk 0:03:00]}
4. d4 {[%clk 0:02:51.9]} 4... Nf6 {[%clk 0:03:00.2]} 5. Nf3 {[%clk 0:02:45.4]}
5... Nc6 {[%clk 0:02:59.6]} 6. h3 {[%clk 0:02:16.1]} 6... Bf5 {[%clk 0:02:54]}
7. g4 {[%clk 0:01:59.3]} 7... Bg6 {[%clk 0:02:52.4]} 8. Bb5 {[%clk 0:01:48.7]}
8... O-O-O {[%clk 0:02:52]} 9. Bxc6 {[%clk 0:01:48.4]} 9... bxc6 {[%clk
0:02:52.9]} 10. Ne5 {[%clk 0:01:43.5]} 10... Qb6 {[%clk 0:02:52.3]} 11. Ne2
{[%clk 0:01:28.1]} 11... c5 {[%clk 0:02:49.3]} 12. c3 {[%clk 0:01:16.3]} 12...
e6 {[%clk 0:02:48.8]} 13. Qb3 {[%clk 0:01:05.2]} 13... cxd4 {[%clk 0:02:41.3]}
14. Nxd4 {[%clk 0:00:58.5]} 14... Bc5 {[%clk 0:02:33.8]} 15. Be3 {[%clk
0:00:55.6]} 15... Bxd4 {[%clk 0:02:24.8]} 16. Bxd4 {[%clk 0:00:54.1]} 16... Rxd4
{[%clk 0:02:12.8]} 17. Qxb6 {[%clk 0:00:50.8]} 17... axb6 {[%clk 0:01:55.3]} 18.
cxd4 {[%clk 0:00:50.1]} 18... Be4 {[%clk 0:01:54.9]} 19. f3 {[%clk 0:00:49.3]}
19... Bd5 {[%clk 0:01:52.6]} 20. Nxf7 {[%clk 0:00:47]} 20... Rf8 {[%clk
0:01:51.7]} 21. Ne5 {[%clk 0:00:46.8]} 21... Nd7 {[%clk 0:01:51.3]} 22. O-O
{[%clk 0:00:37]} 22... Nxe5 {[%clk 0:01:46.1]} 23. dxe5 {[%clk 0:00:37.9]} 23...
Rf4 {[%clk 0:01:46.2]} 24. Kg2 {[%clk 0:00:31.1]} 24... Rb4 {[%clk 0:01:44.2]}
25. b3 {[%clk 0:00:30.7]} 25... Kd7 {[%clk 0:01:42.2]} 26. Kg3 {[%clk 0:00:31]}
26... c5 {[%clk 0:01:40.2]} 27. Rad1 {[%clk 0:00:29.2]} 27... Ke7 {[%clk
0:01:40]} 28. f4 {[%clk 0:00:29.5]} 28... c4 {[%clk 0:01:35.4]} 29. bxc4 {[%clk
0:00:27.6]} 29... Rxc4 {[%clk 0:01:33]} 30. Rd3 {[%clk 0:00:25.7]} 30... h6
{[%clk 0:01:31.9]} 31. Rf2 {[%clk 0:00:24.3]} 31... Rc1 {[%clk 0:01:28.6]} 32.
f5 {[%clk 0:00:20.4]} 32... Rg1+ {[%clk 0:01:24.3]} 33. Kf4 {[%clk 0:00:20.4]}
33... Re1 {[%clk 0:01:21.2]} 34. Rxd5 {[%clk 0:00:18.4]} 34... exd5 {[%clk
0:01:20.7]} 35. Rb2 {[%clk 0:00:18.7]} 35... Re4+ {[%clk 0:01:17.5]} 36. Kf3
{[%clk 0:00:19]} 36... Rxe5 {[%clk 0:01:17.8]} 37. Rxb6 {[%clk 0:00:19]} 37...
d4 {[%clk 0:01:18.1]} 38. Rb7+ {[%clk 0:00:18.7]} 38... Kf6 {[%clk 0:01:18]} 39.
Rb6+ {[%clk 0:00:19.1]} 39... Kf7 {[%clk 0:01:14.9]} 40. Rd6 {[%clk 0:00:18.2]}
40... Re3+ {[%clk 0:01:14.8]} 41. Kf4 {[%clk 0:00:18.5]} 41... Rxh3 {[%clk
0:01:12.2]} 42. Rxd4 {[%clk 0:00:18.3]} 42... Ra3 {[%clk 0:01:12.8]} 43. Rd2
{[%clk 0:00:18.3]} 43... Kf6 {[%clk 0:01:12.7]} 44. Rd6+ {[%clk 0:00:15.5]}
44... Ke7 {[%clk 0:01:11.3]} 45. Rd2 {[%clk 0:00:16.4]} 45... Ra4+ {[%clk
0:01:08.6]} 46. Kf3 {[%clk 0:00:15.7]} 46... Kf6 {[%clk 0:01:08.9]} 47. Rd6+
{[%clk 0:00:14.7]} 47... Ke5 {[%clk 0:01:08.2]} 48. Re6+ {[%clk 0:00:14.8]}
48... Kd5 {[%clk 0:01:08.3]} 49. Rg6 {[%clk 0:00:14.9]} 49... Ra7 {[%clk
0:01:07]} 50. a4 {[%clk 0:00:13.6]} 50... Ke5 {[%clk 0:01:04.5]} 51. a5 {[%clk
0:00:13.3]} 51... Rxa5 {[%clk 0:01:04.5]} 52. Rxg7 {[%clk 0:00:13]} 52... Ra3+
{[%clk 0:01:04.8]} 53. Kg2 {[%clk 0:00:13.2]} 53... Kf4 {[%clk 0:01:05]} 54. Rg6
{[%clk 0:00:12.4]} 54... Ra2+ {[%clk 0:01:04.4]} 55. Kf1 {[%clk 0:00:11.8]}
55... Kf3 {[%clk 0:01:02.1]} 56. Ke1 {[%clk 0:00:12.1]} 56... Ra4 {[%clk
0:00:57.8]} 57. f6 {[%clk 0:00:11.4]} 57... Rf4 {[%clk 0:00:52]} 58. Kd2 {[%clk
0:00:10.8]} 58... Ke4 {[%clk 0:00:51.6]} 59. Rxh6 {[%clk 0:00:09.1]} 59... Rxg4
{[%clk 0:00:49.5]} 60. Kc3 {[%clk 0:00:09]} 60... Ke5 {[%clk 0:00:46.7]} 61. Kd3
{[%clk 0:00:07.9]} 61... Rf4 {[%clk 0:00:43.9]} 62. Ke3 {[%clk 0:00:07.8]} 62...
Rf5 {[%clk 0:00:43.4]} 63. Ke2 {[%clk 0:00:06.8]} 63... Ke6 {[%clk 0:00:43]} 64.
Ke3 {[%clk 0:00:06.8]} 64... Kf7 {[%clk 0:00:43.3]} 65. Ke2 {[%clk 0:00:07]}
65... Re5+ {[%clk 0:00:43.3]} 66. Kd2 {[%clk 0:00:07]} 66... Re6 {[%clk
0:00:43.2]} 67. Kc2 {[%clk 0:00:06.1]} 67... Re8 {[%clk 0:00:39.3]} 68. Kd2
{[%clk 0:00:06.1]} 68... Ke6 {[%clk 0:00:39.8]} 69. Kd3 {[%clk 0:00:06.3]} 69...
Kf5 {[%clk 0:00:40.2]} 70. Kd2 {[%clk 0:00:06.5]} 70... Kg5 {[%clk 0:00:40.6]}
71. f7 {[%clk 0:00:06.8]} 71... Rd8+ {[%clk 0:00:39.9]} 72. Ke3 {[%clk
0:00:06.9]} 72... Kxh6 {[%clk 0:00:40.2]} 73. Ke4 {[%clk 0:00:07.8]} 73... Kg7
{[%clk 0:00:40.6]} 74. Ke5 {[%clk 0:00:08.7]} 74... Kxf7 {[%clk 0:00:41.1]} 75.
Kf5 {[%clk 0:00:08.4]} 75... Rd5+ {[%clk 0:00:41.2]} 76. Ke4 {[%clk 0:00:07.9]}
76... Ke6 {[%clk 0:00:42.1]} 77. Ke3 {[%clk 0:00:07.9]} 77... Ke5 {[%clk
0:00:42.5]} 78. Kf3 {[%clk 0:00:08.1]} 78... Rd3+ {[%clk 0:00:43]} 79. Ke2
{[%clk 0:00:08.1]} 79... Ke4 {[%clk 0:00:43.1]} 80. Kf2 {[%clk 0:00:08.3]} 80...
Re3 {[%clk 0:00:43.3]} 81. Kg2 {[%clk 0:00:07.4]} 81... Rf3 {[%clk 0:00:43.8]}
82. Kh2 {[%clk 0:00:07.5]} 82... Ke3 {[%clk 0:00:43.5]} 83. Kg2 {[%clk
0:00:07.2]} 83... Ke2 {[%clk 0:00:44.1]} 84. Kh2 {[%clk 0:00:07.4]} 84... Kf2
{[%clk 0:00:45]} 85. Kh1 {[%clk 0:00:07.5]} 85... Rh3# {[%clk 0:00:45.9]} 0-1

[Event "*** Titled Tuesday Blitz"]
[Site "Chess.com"]
[Date "2020.12.01"]
[Round "3"]
[White "Lion-Al-Messi"]
[Black "Alexsur1981"]
[Result "1-0"]
[WhiteElo "2588"]
[BlackElo "2819"]
[TimeControl "180+1"]
[EndTime "10:30:11 PST"]
[Termination "Lion-Al-Messi won by checkmate"]

1. d4 {[%clk 0:03:00.9]} 1... d6 {[%clk 0:02:59]} 2. e4 {[%clk 0:03:00.3]} 2...
Nf6 {[%clk 0:02:58.3]} 3. Nc3 {[%clk 0:02:57.6]} 3... e5 {[%clk 0:02:58.6]} 4.
Nf3 {[%clk 0:02:55.6]} 4... Nbd7 {[%clk 0:02:58.1]} 5. Be2 {[%clk 0:02:54.4]}
5... Be7 {[%clk 0:02:57.9]} 6. O-O {[%clk 0:02:53.4]} 6... O-O {[%clk
0:02:58.4]} 7. Re1 {[%clk 0:02:52.2]} 7... c6 {[%clk 0:02:57.5]} 8. h3 {[%clk
0:02:47.4]} 8... b5 {[%clk 0:02:53.9]} 9. a3 {[%clk 0:02:34.8]} 9... Bb7 {[%clk
0:02:50.8]} 10. Be3 {[%clk 0:02:31.7]} 10... a5 {[%clk 0:02:41.1]} 11. b4 {[%clk
0:02:02.8]} 11... Re8 {[%clk 0:02:32.4]} 12. Qd2 {[%clk 0:02:01.5]} 12... Bf8
{[%clk 0:02:18.5]} 13. Rad1 {[%clk 0:01:43]} 13... axb4 {[%clk 0:02:15.9]} 14.
axb4 {[%clk 0:01:42.3]} 14... exd4 {[%clk 0:02:11.5]} 15. Nxd4 {[%clk
0:01:41.6]} 15... g6 {[%clk 0:01:28.7]} 16. Nb3 {[%clk 0:01:20.3]} 16... Qc7
{[%clk 0:01:19.5]} 17. Na5 {[%clk 0:01:18.5]} 17... Rad8 {[%clk 0:01:12.7]} 18.
Bg5 {[%clk 0:01:10.5]} 18... Ba8 {[%clk 0:01:11]} 19. Qf4 {[%clk 0:01:03.7]}
19... Re6 {[%clk 0:01:04.8]} 20. Bg4 {[%clk 0:00:48.7]} 20... Nxg4 {[%clk
0:01:03]} 21. Bxd8 {[%clk 0:00:48]} 21... Qxd8 {[%clk 0:01:03.2]} 22. hxg4
{[%clk 0:00:42.8]} 22... Ne5 {[%clk 0:01:02.4]} 23. Nb3 {[%clk 0:00:35]} 23...
Qh4 {[%clk 0:01:00.7]} 24. Nd4 {[%clk 0:00:30.9]} 24... Rf6 {[%clk 0:01:00]} 25.
Qg3 {[%clk 0:00:29.3]} 25... Qxg3 {[%clk 0:00:57.5]} 26. fxg3 {[%clk 0:00:30.2]}
26... Nxg4 {[%clk 0:00:58]} 27. Nf3 {[%clk 0:00:30.5]} 27... Re6 {[%clk
0:00:54.5]} 28. Ne2 {[%clk 0:00:26.1]} 28... Bb7 {[%clk 0:00:49.8]} 29. Ned4
{[%clk 0:00:25.9]} 29... Re8 {[%clk 0:00:48.7]} 30. Ra1 {[%clk 0:00:24.2]} 30...
Bg7 {[%clk 0:00:45.3]} 31. Ra7 {[%clk 0:00:24.1]} 31... Rb8 {[%clk 0:00:45.7]}
32. Nb3 {[%clk 0:00:21.2]} 32... Bc3 {[%clk 0:00:43.8]} 33. Na5 {[%clk
0:00:11.9]} 33... Bxe1 {[%clk 0:00:41.8]} 34. Nxe1 {[%clk 0:00:12.8]} 34... Ba8
{[%clk 0:00:40.7]} 35. Nd3 {[%clk 0:00:12.6]} 35... Nf6 {[%clk 0:00:39.4]} 36.
e5 {[%clk 0:00:12]} 36... Ne8 {[%clk 0:00:38.9]} 37. exd6 {[%clk 0:00:10.3]}
37... Nxd6 {[%clk 0:00:39.8]} 38. Ne5 {[%clk 0:00:10.8]} 38... Rc8 {[%clk
0:00:38.6]} 39. Nd7 {[%clk 0:00:10.4]} 39... Rd8 {[%clk 0:00:32]} 40. Nb6 {[%clk
0:00:10.2]} 40... Bb7 {[%clk 0:00:25]} 41. Nxb7 {[%clk 0:00:09.2]} 41... Nxb7
{[%clk 0:00:25.9]} 42. Rxb7 {[%clk 0:00:10.1]} 42... Rd1+ {[%clk 0:00:25.8]} 43.
Kh2 {[%clk 0:00:09.6]} 43... Rd2 {[%clk 0:00:26.7]} 44. Rb8+ {[%clk 0:00:08.8]}
44... Kg7 {[%clk 0:00:26.3]} 45. Rc8 {[%clk 0:00:09]} 45... Rxc2 {[%clk
0:00:26.2]} 46. Nd7 {[%clk 0:00:08.8]} 46... Rc4 {[%clk 0:00:25.9]} 47. Ne5
{[%clk 0:00:08.5]} 47... Rxb4 {[%clk 0:00:26.1]} 48. Rxc6 {[%clk 0:00:07.4]}
48... Re4 {[%clk 0:00:25.7]} 49. Rc5 {[%clk 0:00:05.8]} 49... b4 {[%clk
0:00:25.1]} 50. Rb5 {[%clk 0:00:06.3]} 50... Rd4 {[%clk 0:00:24.4]} 51. Nc6
{[%clk 0:00:06.1]} 51... Rd1 {[%clk 0:00:21.3]} 52. Rxb4 {[%clk 0:00:05.6]}
52... h5 {[%clk 0:00:21.8]} 53. Ne5 {[%clk 0:00:05.1]} 53... Rd5 {[%clk
0:00:21.4]} 54. Nf3 {[%clk 0:00:04.9]} 54... Rd7 {[%clk 0:00:21.6]} 55. Kg1
{[%clk 0:00:05.2]} 55... Rc7 {[%clk 0:00:21.8]} 56. Kf2 {[%clk 0:00:05.6]} 56...
f6 {[%clk 0:00:21.9]} 57. Rb6 {[%clk 0:00:05.5]} 57... Rc2+ {[%clk 0:00:21.6]}
58. Kg1 {[%clk 0:00:05.9]} 58... Rc7 {[%clk 0:00:22.5]} 59. Nd4 {[%clk
0:00:06.1]} 59... Rd7 {[%clk 0:00:22.4]} 60. Ne6+ {[%clk 0:00:06.3]} 60... Kf7
{[%clk 0:00:22.8]} 61. Nc5 {[%clk 0:00:06.7]} 61... Re7 {[%clk 0:00:22.8]} 62.
Nb7 {[%clk 0:00:06.4]} 62... g5 {[%clk 0:00:20.6]} 63. Nd6+ {[%clk 0:00:06.8]}
63... Kg6 {[%clk 0:00:21.2]} 64. Kf2 {[%clk 0:00:06.6]} 64... Rd7 {[%clk
0:00:20.9]} 65. Ne4 {[%clk 0:00:06.7]} 65... Rf7 {[%clk 0:00:21.2]} 66. Kf3
{[%clk 0:00:06.6]} 66... Rf8 {[%clk 0:00:21.1]} 67. Rd6 {[%clk 0:00:05]} 67...
Rf7 {[%clk 0:00:20.8]} 68. g4 {[%clk 0:00:05.3]} 68... Rf8 {[%clk 0:00:21.7]}
69. gxh5+ {[%clk 0:00:05.3]} 69... Kxh5 {[%clk 0:00:21.9]} 70. Rxf6 {[%clk
0:00:05.3]} 70... Rh8 {[%clk 0:00:17.4]} 71. Rf5 {[%clk 0:00:05.5]} 71... Rg8
{[%clk 0:00:14.2]} 72. Rxg5+ {[%clk 0:00:06]} 72... Rxg5 {[%clk 0:00:13.7]} 73.
Nxg5 {[%clk 0:00:06.9]} 73... Kxg5 {[%clk 0:00:14.6]} 74. Kg3 {[%clk 0:00:07.3]}
74... Kh5 {[%clk 0:00:14.4]} 75. Kf4 {[%clk 0:00:07.6]} 75... Kg6 {[%clk
0:00:15.3]} 76. Kg4 {[%clk 0:00:08]} 76... Kh6 {[%clk 0:00:15.4]} 77. Kf5 {[%clk
0:00:08.4]} 77... Kg7 {[%clk 0:00:16.3]} 78. Kg5 {[%clk 0:00:08.4]} 78... Kf7
{[%clk 0:00:17.2]} 79. Kh6 {[%clk 0:00:08.2]} 79... Kf6 {[%clk 0:00:17.3]} 80.
g4 {[%clk 0:00:08.6]} 80... Kf7 {[%clk 0:00:18.2]} 81. g5 {[%clk 0:00:08.6]}
81... Kg8 {[%clk 0:00:18.4]} 82. Kg6 {[%clk 0:00:09]} 82... Kh8 {[%clk
0:00:18.8]} 83. Kf7 {[%clk 0:00:09.3]} 83... Kh7 {[%clk 0:00:18.5]} 84. g6+
{[%clk 0:00:10.2]} 84... Kh6 {[%clk 0:00:19.4]} 85. g7 {[%clk 0:00:10.5]} 85...
Kh5 {[%clk 0:00:20.3]} 86. g8=Q {[%clk 0:00:10.8]} 86... Kh4 {[%clk 0:00:21.2]}
87. Qg2 {[%clk 0:00:10.8]} 87... Kh5 {[%clk 0:00:19.2]} 88. Qg3 {[%clk
0:00:11.2]} 88... Kh6 {[%clk 0:00:18.4]} 89. Qg6# {[%clk 0:00:12.1]} 1-0

[Event "*** Titled Tuesday Blitz"]
[Site "Chess.com"]
[Date "2020.12.01"]
[Round "3"]
[White "DanilNajdin"]
[Black "Taktikmonster"]
[Result "0-1"]
[WhiteElo "2364"]
[BlackElo "2225"]
[TimeControl "180+1"]
[EndTime "10:30:25 PST"]
[Termination "Taktikmonster won on time"]

1. e4 {[%clk 0:03:00.9]} 1... c5 {[%clk 0:02:44.9]} 2. Nf3 {[%clk 0:02:59.9]}
2... d6 {[%clk 0:02:44.7]} 3. Bb5+ {[%clk 0:02:58.1]} 3... Nd7 {[%clk
0:02:44.2]} 4. c3 {[%clk 0:02:52.8]} 4... Nf6 {[%clk 0:02:42.3]} 5. O-O {[%clk
0:02:38.7]} 5... Nxe4 {[%clk 0:02:18.3]} 6. Re1 {[%clk 0:02:35.7]} 6... Nf6
{[%clk 0:02:11.2]} 7. d4 {[%clk 0:02:35.1]} 7... a6 {[%clk 0:01:39.6]} 8. Bf1
{[%clk 0:01:41.9]} 8... e6 {[%clk 0:01:28.7]} 9. d5 {[%clk 0:01:12.3]} 9... e5
{[%clk 0:01:18]} 10. a4 {[%clk 0:00:59.4]} 10... Be7 {[%clk 0:01:12.8]} 11. Nbd2
{[%clk 0:00:57.6]} 11... O-O {[%clk 0:01:12]} 12. Nc4 {[%clk 0:00:43.7]} 12...
Nb6 {[%clk 0:01:08.8]} 13. Nxb6 {[%clk 0:00:42.3]} 13... Qxb6 {[%clk 0:01:09.7]}
14. a5 {[%clk 0:00:43.2]} 14... Qc7 {[%clk 0:01:08.7]} 15. Bg5 {[%clk
0:00:40.1]} 15... Bg4 {[%clk 0:00:51.6]} 16. Ra4 {[%clk 0:00:39.6]} 16... Qd7
{[%clk 0:00:28.1]} 17. b3 {[%clk 0:00:31.6]} 17... Qf5 {[%clk 0:00:24.9]} 18.
Bd3 {[%clk 0:00:24.6]} 18... Bxf3 {[%clk 0:00:17.3]} 19. Bxf5 {[%clk 0:00:24.8]}
19... Bxd1 {[%clk 0:00:16.5]} 20. Rxd1 {[%clk 0:00:25.7]} 20... Nxd5 {[%clk
0:00:15.8]} 21. Rxd5 {[%clk 0:00:23.9]} 21... Bxg5 {[%clk 0:00:15.5]} 22. Rxd6
{[%clk 0:00:24.4]} 22... Rfd8 {[%clk 0:00:15.7]} 23. Rxd8+ {[%clk 0:00:20.1]}
23... Rxd8 {[%clk 0:00:16.6]} 24. g3 {[%clk 0:00:19.9]} 24... Rd1+ {[%clk
0:00:15.8]} 25. Kg2 {[%clk 0:00:19.9]} 25... Rc1 {[%clk 0:00:16.4]} 26. Rc4
{[%clk 0:00:18.8]} 26... g6 {[%clk 0:00:15.5]} 27. Be4 {[%clk 0:00:18.3]} 27...
Bd2 {[%clk 0:00:10.1]} 28. Rxc5 {[%clk 0:00:12.7]} 28... Rxc3 {[%clk 0:00:10]}
29. Rxc3 {[%clk 0:00:08.1]} 29... Bxc3 {[%clk 0:00:10.9]} 30. Bxb7 {[%clk
0:00:08.6]} 30... Bxa5 {[%clk 0:00:11.5]} 31. Bxa6 {[%clk 0:00:09.5]} 31... Kf8
{[%clk 0:00:10.2]} 32. Kf3 {[%clk 0:00:09.2]} 32... Ke7 {[%clk 0:00:10.5]} 33.
Ke4 {[%clk 0:00:07.7]} 33... Kd6 {[%clk 0:00:10.8]} 34. Bc4 {[%clk 0:00:07.7]}
34... f5+ {[%clk 0:00:10.7]} 35. Kd3 {[%clk 0:00:08.1]} 35... h6 {[%clk
0:00:11.1]} 36. f3 {[%clk 0:00:07.8]} 36... g5 {[%clk 0:00:08.6]} 37. h3 {[%clk
0:00:07.6]} 37... Bb4 {[%clk 0:00:06.7]} 38. g4 {[%clk 0:00:07.7]} 38... fxg4
{[%clk 0:00:06.2]} 39. fxg4 {[%clk 0:00:06.2]} 39... Ke7 {[%clk 0:00:06.2]} 40.
Ke4 {[%clk 0:00:06.1]} 40... Kd6 {[%clk 0:00:06.5]} 41. Bg8 {[%clk 0:00:05.6]}
41... Bc3 {[%clk 0:00:06.5]} 42. Kd3 {[%clk 0:00:05.2]} 42... Bb4 {[%clk
0:00:06.8]} 43. Kc4 {[%clk 0:00:05.6]} 43... Bc5 {[%clk 0:00:06.6]} 44. b4
{[%clk 0:00:06.1]} 44... Bb6 {[%clk 0:00:06.7]} 45. Bd5 {[%clk 0:00:06.5]} 45...
Bd4 {[%clk 0:00:06.1]} 46. b5 {[%clk 0:00:06.7]} 46... Bb6 {[%clk 0:00:06.2]}
47. Bc6 {[%clk 0:00:07.2]} 47... Ba7 {[%clk 0:00:04.4]} 48. Kd3 {[%clk
0:00:07.6]} 48... Bb6 {[%clk 0:00:04.5]} 49. Ke4 {[%clk 0:00:08.3]} 49... Bd4
{[%clk 0:00:03.1]} 50. Kf5 {[%clk 0:00:08.1]} 50... Be3 {[%clk 0:00:02.9]} 51.
Kg6 {[%clk 0:00:08.1]} 51... Kc5 {[%clk 0:00:03.2]} 52. Kxh6 {[%clk 0:00:08]}
52... Kd6 {[%clk 0:00:01.7]} 53. Kg6 {[%clk 0:00:08.3]} 53... Bd2 {[%clk
0:00:01.3]} 54. Kf5 {[%clk 0:00:08.1]} 54... Be3 {[%clk 0:00:01.9]} 55. Ke4
{[%clk 0:00:08.4]} 55... Bb6 {[%clk 0:00:01.9]} 56. Kd3 {[%clk 0:00:08]} 56...
Bc5 {[%clk 0:00:02.1]} 57. Kc4 {[%clk 0:00:07.9]} 57... Bb6 {[%clk 0:00:02.7]}
58. Be4 {[%clk 0:00:08.1]} 58... Bc5 {[%clk 0:00:03.2]} 59. Bf5 {[%clk
0:00:08.2]} 59... Bb6 {[%clk 0:00:03.6]} 60. Be4 {[%clk 0:00:07.9]} 60... Bc5
{[%clk 0:00:03.9]} 61. Bb7 {[%clk 0:00:07.3]} 61... Bb6 {[%clk 0:00:03.8]} 62.
Kd3 {[%clk 0:00:07.3]} 62... Bc5 {[%clk 0:00:04.3]} 63. Bc6 {[%clk 0:00:07.4]}
63... Bb6 {[%clk 0:00:04.7]} 64. Ke4 {[%clk 0:00:08]} 64... Bc5 {[%clk
0:00:05.1]} 65. Kf5 {[%clk 0:00:08.1]} 65... Be3 {[%clk 0:00:05.6]} 66. Kg6
{[%clk 0:00:08.1]} 66... Bd2 {[%clk 0:00:05.5]} 67. Kh5 {[%clk 0:00:08]} 67...
Be3 {[%clk 0:00:05.8]} 68. h4 {[%clk 0:00:08.3]} 68... gxh4 {[%clk 0:00:06.7]}
69. Kxh4 {[%clk 0:00:09.2]} 69... Ke7 {[%clk 0:00:05.9]} 70. Kg3 {[%clk
0:00:08.7]} 70... Kf6 {[%clk 0:00:06]} 71. Kf3 {[%clk 0:00:08.2]} 71... Bc5
{[%clk 0:00:06.6]} 72. Ke4 {[%clk 0:00:08]} 72... Kg5 {[%clk 0:00:07.1]} 73. Bd7
{[%clk 0:00:08.5]} 73... Bd4 {[%clk 0:00:07.5]} 74. Bf5 {[%clk 0:00:07.8]} 74...
Kf6 {[%clk 0:00:07.6]} 75. Kd5 {[%clk 0:00:07.5]} 75... Kg5 {[%clk 0:00:08.1]}
76. Ke4 {[%clk 0:00:05.7]} 76... Kf6 {[%clk 0:00:07.9]} 77. Bc8 {[%clk
0:00:05.9]} 77... Kg5 {[%clk 0:00:08.1]} 78. Kd5 {[%clk 0:00:05.2]} 78... Kf6
{[%clk 0:00:07.7]} 79. Bd7 {[%clk 0:00:04.9]} 79... Kg5 {[%clk 0:00:07.8]} 80.
Ke4 {[%clk 0:00:04.9]} 80... Kf6 {[%clk 0:00:07.7]} 81. Kd5 {[%clk 0:00:04.2]}
81... Kg5 {[%clk 0:00:08.1]} 82. Bc8 {[%clk 0:00:05.1]} 82... Kf6 {[%clk
0:00:07.9]} 83. Kc6 {[%clk 0:00:04.5]} 83... e4 {[%clk 0:00:07.6]} 84. Kd5
{[%clk 0:00:01.8]} 84... e3 {[%clk 0:00:08]} 85. Kxd4 {[%clk 0:00:01]} 85... e2
{[%clk 0:00:08.4]} 86. Ba6 {[%clk 0:00:01.1]} 86... e1=Q {[%clk 0:00:09.3]} 0-1